fUSD/lending_fUSD_20260605
["ID","MTS","AMOUNT","RATE_DAILY","PERIOD"]
[424157485,1780617043000,-1050.0,0.00024774,2]
[424157491,1780617043000,-1050.0,0.00024774,2]
[424157492,1780617043000,-1050.0,0.00024774,2]
[424157494,1780617043000,-700.0,0.00024774,2]
[424157493,1780617043000,-1050.0,0.00024774,2]
[424157486,1780617043000,-1050.0,0.00024774,2]
[424157495,1780617043000,-211.43671141,0.00024786,4]
[424157484,1780617043000,-150.0,0.00024764,4]
[424157462,1780617043000,-350.0,0.00024701,2]
[424157479,1780617043000,-1450.0,0.00024745,2]
[424157469,1780617043000,-150.45242349,0.00024729,2]
[424157449,1780617043000,-450.0,0.0002469,2]
[424157468,1780617043000,-211.43671141,0.00024711,4]
[424157496,1780617043000,-2087.47,0.00024792,7]
[424157438,1780617043000,-211.43671141,0.00024609,4]
[424157441,1780617043000,-1000.0,0.00024658,2]
[424157442,1780617043000,-404.13,0.00024658,2]
[424157443,1780617043000,-211.43671141,0.0002466,4]
[424157437,1780617043000,-150.0,0.00024597,4]
[424157446,1780617043000,-211.43671141,0.00024685,4]
[424157448,1780617043000,-450.0,0.0002469,2]
[424157444,1780617043000,-150.0,0.0002468,4]
[424157439,1780617043000,-150.0,0.00024633,4]
[424157440,1780617043000,-211.43671141,0.00024635,4]
[424157445,1780617043000,-150.0,0.0002468,4]
[424157460,1780617043000,-350.0,0.00024701,2]
[424157447,1780617043000,-150.0,0.00024687,4]
[424157457,1780617043000,-10195.26301136,0.000247,2]
[424157450,1780617043000,-450.0,0.0002469,2]
[424157459,1780617043000,-350.0,0.00024701,2]
[424157454,1780617043000,-450.0,0.0002469,2]
[424157451,1780617043000,-450.0,0.0002469,2]
[424157456,1780617043000,-590.0,0.0002469,2]
[424157455,1780617043000,-450.0,0.0002469,2]
[424157453,1780617043000,-450.0,0.0002469,2]
[424157458,1780617043000,-350.0,0.00024701,2]
[424157467,1780617043000,-202.0,0.00024701,2]
[424157461,1780617043000,-350.0,0.00024701,2]
[424157470,1780617043000,-211.43671141,0.00024736,4]
[424157452,1780617043000,-450.0,0.0002469,2]
[424157488,1780617043000,-1050.0,0.00024774,2]
[424157490,1780617043000,-1050.0,0.00024774,2]
[424157538,1780617043000,-150.0,0.00025014,4]
[424157523,1780617043000,-2459.95086653,0.00025,2]
[424157533,1780617043000,-101596.0,0.00025,2]
[424157530,1780617043000,-992.21642591,0.00025,2]
[424157529,1780617043000,-3445.21968046,0.00025,2]
[424157532,1780617043000,-520.81620801,0.00025,2]
[424157545,1780617043000,-151.0,0.00025023,2]
[424157535,1780617043000,-151.0,0.00025012,2]
[424157534,1780617043000,-151.0,0.00025012,2]
[424157537,1780617043000,-150.0,0.00025014,4]
[424157542,1780617043000,-211.43671141,0.00025014,4]
[424157546,1780617043000,-151.0,0.00025023,2]
[424157539,1780617043000,-265.84083951,0.00025014,4]
[424157536,1780617043000,-151.0,0.00025012,2]
[424157544,1780617043000,-151.0,0.00025023,2]
[424157541,1780617043000,-150.0,0.00025014,4]
[424157540,1780617043000,-150.0,0.00025014,4]
[424157543,1780617043000,-269623.7483136,0.00025023,2]
[424157548,1780617043000,-151.0,0.00025023,2]
[424157552,1780617043000,-187.729829,0.00025023,2]
[424157550,1780617043000,-187.729829,0.00025023,2]
[424157547,1780617043000,-151.0,0.00025023,2]
[424157549,1780617043000,-187.729829,0.00025023,2]
[424157551,1780617043000,-187.729829,0.00025023,2]
[424157553,1780617043000,-151.0,0.00025023,2]
[424157554,1780617043000,-500.0,0.00025023,2]
[424157489,1780617043000,-1050.0,0.00024774,2]
[424157555,1780617043000,-500.0,0.00025023,2]
[424157528,1780617043000,-344.27581179,0.00025,2]
[424157527,1780617043000,-707.26429929,0.00025,2]
[424157531,1780617043000,-1767.80008228,0.00025,2]
[424157525,1780617043000,-582.9275313,0.00025,2]
[424157497,1780617043000,-150.0,0.00024796,4]
[424157501,1780617043000,-150.0,0.00024847,4]
[424157499,1780617043000,-211.43671141,0.00024837,4]
[424157500,1780617043000,-336.86760253,0.00024841,60]
[424157503,1780617043000,-150.0,0.00024851,4]
[424157505,1780617043000,-211.43671141,0.00024887,4]
[424157504,1780617043000,-211.43671141,0.00024862,4]
[424157509,1780617043000,-166.66,0.00024929,2]
[424157526,1780617043000,-3506.44327925,0.00025,2]
[424157506,1780617043000,-150.0,0.00024905,4]
[424157507,1780617043000,-211.43671141,0.00024913,4]
[424157502,1780617043000,-150.0,0.00024847,4]
[424157498,1780617043000,-211.43671141,0.00024812,4]
[424157511,1780617043000,-150.0,0.0002493,4]
[424157508,1780617043000,-614.83612588,0.00024922,2]
[424157522,1780617043000,-2418.06736465,0.00025,2]
[424157524,1780617043000,-905.9717729,0.00025,2]
[424157521,1780617043000,-463.89486022,0.00025,2]
[424157514,1780617043000,-211.43671141,0.00024963,4]
[424157520,1780617043000,-1057.89868791,0.00025,2]
[424157517,1780617043000,-200.0,0.00024996,2]
[424157519,1780617043000,-706.11225223,0.00025,2]
[424157516,1780617043000,-211.43671141,0.00024988,4]
[424157513,1780617043000,-150.0,0.00024959,4]
[424157518,1780617043000,-10195.26301136,0.00025,2]
[424157510,1780617043000,-150.0,0.0002493,4]
[424157512,1780617043000,-211.43671141,0.00024938,4]
[424157515,1780617043000,-1323.0,0.00024975,2]
[424157602,1780617044000,-500.0,0.00025023,2]
[424157599,1780617044000,-500.0,0.00025023,2]
[424157595,1780617044000,-500.0,0.00025023,2]
[424157594,1780617044000,-500.0,0.00025023,2]
[424157590,1780617044000,-500.0,0.00025023,2]
[424157593,1780617044000,-500.0,0.00025023,2]
[424157591,1780617044000,-500.0,0.00025023,2]
[424157592,1780617044000,-500.0,0.00025023,2]
[424157586,1780617044000,-500.0,0.00025023,2]
[424157589,1780617044000,-500.0,0.00025023,2]
[424157598,1780617044000,-500.0,0.00025023,2]
[424157605,1780617044000,-500.0,0.00025023,2]
[424157588,1780617044000,-500.0,0.00025023,2]
[424157606,1780617044000,-500.0,0.00025023,2]
[424157612,1780617044000,-151.0,0.00025023,2]
[424157607,1780617044000,-298.342053,0.00025023,2]
[424157603,1780617044000,-500.0,0.00025023,2]
[424157600,1780617044000,-500.0,0.00025023,2]
[424157601,1780617044000,-500.0,0.00025023,2]
[424157608,1780617044000,-151.0,0.00025023,2]
[424157609,1780617044000,-2991.49051684,0.00025023,2]
[424157611,1780617044000,-151.0,0.00025023,2]
[424157622,1780617044000,-75216.10104736,0.00025034,2]
[424157621,1780617044000,-200.0,0.00025025,2]
[424157614,1780617044000,-834.811559,0.00025023,2]
[424157610,1780617044000,-151.0,0.00025023,2]
[424157613,1780617044000,-834.811559,0.00025023,2]
[424157597,1780617044000,-500.0,0.00025023,2]
[424157604,1780617044000,-500.0,0.00025023,2]
[424157596,1780617044000,-500.0,0.00025023,2]
[424157558,1780617044000,-500.0,0.00025023,2]
[424157584,1780617044000,-500.0,0.00025023,2]
[424157559,1780617044000,-500.0,0.00025023,2]
[424157557,1780617044000,-500.0,0.00025023,2]
[424157556,1780617044000,-500.0,0.00025023,2]
[424157561,1780617044000,-500.0,0.00025023,2]
[424157560,1780617044000,-500.0,0.00025023,2]
[424157569,1780617044000,-500.0,0.00025023,2]
[424157570,1780617044000,-500.0,0.00025023,2]
[424157571,1780617044000,-500.0,0.00025023,2]
[424157572,1780617044000,-500.0,0.00025023,2]
[424157562,1780617044000,-500.0,0.00025023,2]
[424157564,1780617044000,-500.0,0.00025023,2]
[424157566,1780617044000,-500.0,0.00025023,2]
[424157563,1780617044000,-500.0,0.00025023,2]
[424157587,1780617044000,-500.0,0.00025023,2]
[424157568,1780617044000,-500.0,0.00025023,2]
[424157567,1780617044000,-500.0,0.00025023,2]
[424157573,1780617044000,-500.0,0.00025023,2]
[424157575,1780617044000,-500.0,0.00025023,2]
[424157574,1780617044000,-500.0,0.00025023,2]
[424157576,1780617044000,-500.0,0.00025023,2]
[424157579,1780617044000,-500.0,0.00025023,2]
[424157580,1780617044000,-500.0,0.00025023,2]
[424157577,1780617044000,-500.0,0.00025023,2]
[424157578,1780617044000,-500.0,0.00025023,2]
[424157581,1780617044000,-500.0,0.00025023,2]
[424157583,1780617044000,-500.0,0.00025023,2]
[424157585,1780617044000,-500.0,0.00025023,2]
[424157582,1780617044000,-500.0,0.00025023,2]
[424157565,1780617044000,-500.0,0.00025023,2]
[424157615,1780617044000,-834.811559,0.00025023,2]
[424157676,1780617044000,-175.55623872,0.00026817,2]
[424157616,1780617044000,-834.811559,0.00025023,2]
[424157662,1780617044000,-395.31,0.00026286,2]
[424157655,1780617044000,-6009.6,0.00026027,2]
[424157653,1780617044000,-220.0515582,0.00026,2]
[424157654,1780617044000,-550.0,0.00026,2]
[424157657,1780617044000,-200.0,0.00026121,2]
[424157656,1780617044000,-162.61,0.00026027,31]
[424157660,1780617044000,-500.0,0.00026253,2]
[424157658,1780617044000,-500.0,0.00026253,2]
[424157661,1780617044000,-261.6,0.00026286,2]
[424157659,1780617044000,-500.0,0.00026253,2]
[424157674,1780617044000,-200.0,0.00026669,2]
[424157619,1780617044000,-151.0,0.00025023,2]
[424157667,1780617044000,-27950.98067662,0.000264,2]
[424157652,1780617044000,-4597.67740861,0.00026,2]
[424157666,1780617044000,-257.7317478,0.00026397,2]
[424157663,1780617044000,-4221.2,0.00026296,2]
[424157669,1780617044000,-5530.0,0.000265,5]
[424157665,1780617044000,-161.91828087,0.00026397,2]
[424157670,1780617044000,-200.0,0.00026546,2]
[424157672,1780617044000,-157.46178433,0.00026602,2]
[424157673,1780617044000,-671.576668,0.0002666,2]
[424157671,1780617044000,-166.66,0.00026574,2]
[424157675,1780617044000,-182.51871283,0.00026669,2]
[424157678,1780617044000,-250.0,0.00027,2]
[424157677,1780617044000,-14458.94,0.00026819,7]
[424157679,1780617044000,-1052.74283159,0.00027,2]
[424157680,1780617044000,-167.41989989,0.00027,2]
[424157681,1780617044000,-530.0,0.00027,2]
[424157668,1780617044000,-319.51620404,0.00026449,2]
[424157651,1780617044000,-610.7929362,0.0002599,2]
[424157664,1780617044000,-202.9616791,0.00026321,2]
[424157645,1780617044000,-166.66,0.00025751,2]
[424157644,1780617044000,-1007.98,0.00025725,2]
[424157617,1780617044000,-152.594755,0.00025023,2]
[424157620,1780617044000,-154.2948,0.00025023,2]
[424157623,1780617044000,-388616.3768696,0.00025034,2]
[424157625,1780617044000,-2000.0,0.00025076,7]
[424157627,1780617044000,-14458.94,0.00025114,7]
[424157628,1780617044000,-10195.26301136,0.000252,2]
[424157626,1780617044000,-298.4,0.000251,14]
[424157629,1780617044000,-150.0,0.00025296,2]
[424157633,1780617044000,-150.0,0.00025296,2]
[424157624,1780617044000,-2309.6990007,0.00025034,2]
[424157631,1780617044000,-150.0,0.00025296,2]
[424157630,1780617044000,-150.0,0.00025296,2]
[424157632,1780617044000,-150.0,0.00025296,2]
[424157618,1780617044000,-151.0,0.00025023,2]
[424157634,1780617044000,-297.0,0.00025296,2]
[424157636,1780617044000,-10195.26301136,0.000255,2]
[424157646,1780617044000,-200.0,0.00025771,2]
[424157641,1780617044000,-388.0,0.00025605,2]
[424157643,1780617044000,-395.74,0.00025725,2]
[424157647,1780617044000,-19015.21,0.00025786,2]
[424157639,1780617044000,-200.0,0.00025573,2]
[424157642,1780617044000,-1301.75,0.00025644,2]
[424157637,1780617044000,-502.61,0.000255,7]
[424157640,1780617044000,-450.0,0.00025605,2]
[424157649,1780617044000,-5530.0,0.000258,3]
[424157648,1780617044000,-28505.63,0.00025786,2]
[424157638,1780617044000,-233353.63987759,0.0002555,2]
[424157650,1780617044000,-236.66,0.00025823,2]
[424157635,1780617044000,-500.0,0.00025488,2]
[424157724,1780617045000,-749.673451,0.00027397,2]
[424157720,1780617045000,-557.281833,0.00027397,2]
[424157716,1780617045000,-557.281833,0.00027397,2]
[424157717,1780617045000,-151.0,0.00027397,2]
[424157713,1780617045000,-1022.03,0.00027397,2]
[424157715,1780617045000,-528.6,0.00027397,2]
[424157718,1780617045000,-154.772341,0.00027397,2]
[424157711,1780617045000,-151.0,0.00027397,2]
[424157719,1780617045000,-557.281833,0.00027397,2]
[424157714,1780617045000,-151.0,0.00027397,2]
[424157726,1780617045000,-749.673451,0.00027397,2]
[424157721,1780617045000,-557.281833,0.00027397,2]
[424157727,1780617045000,-157.46178433,0.00027397,2]
[424157731,1780617045000,-213.0108027,0.00027449,7]
[424157728,1780617045000,-180.80874698,0.00027397,7]
[424157729,1780617045000,-1897.41,0.000274,7]
[424157725,1780617045000,-749.673451,0.00027397,2]
[424157723,1780617045000,-749.673451,0.00027397,2]
[424157732,1780617045000,-204.71501492,0.000275,2]
[424157733,1780617045000,-253.16437698,0.000275,2]
[424157734,1780617045000,-500.0,0.000275,7]
[424157735,1780617045000,-2087.47,0.00027584,7]
[424157737,1780617045000,-153.16873596,0.00027745,2]
[424157745,1780617045000,-166.49703777,0.00027752,2]
[424157746,1780617045000,-200.0,0.00027765,2]
[424157747,1780617045000,-162.58957424,0.00027776,2]
[424157730,1780617045000,-999.06820793,0.000274,2]
[424157712,1780617045000,-151.0,0.00027397,2]
[424157748,1780617045000,-173.26574862,0.00027777,2]
[424157707,1780617045000,-246.517908,0.00027397,2]
[424157686,1780617045000,-500.0,0.0002704,2]
[424157685,1780617045000,-1600.263085,0.00027,60]
[424157687,1780617045000,-500.0,0.0002704,2]
[424157684,1780617045000,-1600.263084,0.00027,60]
[424157683,1780617045000,-1600.263084,0.00027,60]
[424157682,1780617045000,-502.61,0.00027,7]
[424157699,1780617045000,-151.0,0.00027397,2]
[424157690,1780617045000,-177.38156413,0.00027165,2]
[424157688,1780617045000,-836.0,0.00027123,2]
[424157691,1780617045000,-200.0,0.00027217,2]
[424157692,1780617045000,-213.88807234,0.00027311,2]
[424157693,1780617045000,-202.9616791,0.00027321,2]
[424157695,1780617045000,-4184.24891676,0.0002739,2]
[424157694,1780617045000,-200.0,0.00027321,2]
[424157696,1780617045000,-8266.62594141,0.0002739,2]
[424157698,1780617045000,-151.0,0.00027397,2]
[424157697,1780617045000,-151.0,0.00027397,2]
[424157700,1780617045000,-217.9830765,0.00027397,7]
[424157702,1780617045000,-1500.0,0.00027397,2]
[424157709,1780617045000,-246.517908,0.00027397,2]
[424157710,1780617045000,-404.13,0.00027397,2]
[424157703,1780617045000,-6009.6,0.00027397,2]
[424157705,1780617045000,-1000.0,0.00027397,20]
[424157704,1780617045000,-300.0,0.00027397,2]
[424157701,1780617045000,-166.66,0.00027397,2]
[424157708,1780617045000,-246.517908,0.00027397,2]
[424157706,1780617045000,-246.517908,0.00027397,2]
[424157722,1780617045000,-3083.68,0.00027397,2]
[424157738,1780617045000,-151.384746,0.00027745,2]
[424157689,1780617045000,-504.0,0.00027137,2]
[424157740,1780617045000,-185.5222604,0.00027745,2]
[424157775,1780617045000,-1547.0,0.00028457,3]
[424157786,1780617045000,-209.94904578,0.00028602,7]
[424157777,1780617045000,-1547.0,0.00028457,3]
[424157783,1780617045000,-14458.94,0.00028524,7]
[424157779,1780617045000,-168.16,0.00028493,2]
[424157776,1780617045000,-1547.0,0.00028457,3]
[424157778,1780617045000,-1547.0,0.00028457,3]
[424157784,1780617045000,-1897.41,0.000286,7]
[424157780,1780617045000,-1179.31,0.000285,7]
[424157787,1780617045000,-286.38,0.0002863,2]
[424157782,1780617045000,-152.0,0.00028506,3]
[424157785,1780617045000,-895.2,0.000286,30]
[424157781,1780617045000,-1000.0,0.00028503,2]
[424157788,1780617045000,-1017.05,0.0002863,30]
[424157791,1780617045000,-286.4,0.0002863,2]
[424157795,1780617045000,-1016.83,0.00028653,7]
[424157794,1780617045000,-673.4,0.0002863,30]
[424157796,1780617045000,-286.38,0.00028661,7]
[424157792,1780617045000,-1016.83,0.0002863,30]
[424157793,1780617045000,-972.08,0.0002863,30]
[424157790,1780617045000,-673.47,0.0002863,30]
[424157798,1780617045000,-466.05324864,0.00028687,17]
[424157799,1780617045000,-504.0,0.00028692,3]
[424157800,1780617045000,-286.38,0.00028693,30]
[424157797,1780617045000,-286.4,0.00028661,7]
[424157801,1780617045000,-286.4,0.00028693,30]
[424157736,1780617045000,-172.85721209,0.00027745,2]
[424157771,1780617045000,-151.0,0.00028437,7]
[424157769,1780617045000,-450.0,0.00028344,2]
[424157789,1780617045000,-972.27,0.0002863,30]
[424157766,1780617045000,-200.0,0.00028313,2]
[424157772,1780617045000,-1547.0,0.00028457,3]
[424157739,1780617045000,-170.62675415,0.00027745,2]
[424157742,1780617045000,-171.37197288,0.00027745,2]
[424157741,1780617045000,-159.83214172,0.00027745,2]
[424157743,1780617045000,-161.87067253,0.00027745,2]
[424157744,1780617045000,-215.80383714,0.00027752,2]
[424157749,1780617045000,-150.91737582,0.00027777,2]
[424157753,1780617045000,-668.36602985,0.00027954,2]
[424157758,1780617045000,-600.0,0.00028,2]
[424157754,1780617045000,-51742.53131151,0.00028,2]
[424157752,1780617045000,-504.0,0.00027914,2]
[424157751,1780617045000,-500.0,0.00027851,15]
[424157757,1780617045000,-961.34218118,0.00028,5]
[424157756,1780617045000,-325.0,0.00028,2]
[424157755,1780617045000,-232.83018654,0.00028,30]
[424157760,1780617045000,-215.73365239,0.00028,7]
[424157768,1780617045000,-437.4,0.00028344,2]
[424157770,1780617045000,-2000.0,0.00028427,2]
[424157764,1780617045000,-233.94091002,0.00028294,2]
[424157774,1780617045000,-1547.0,0.00028457,3]
[424157773,1780617045000,-1547.0,0.00028457,3]
[424157762,1780617045000,-166.66,0.0002822,2]
[424157767,1780617045000,-270.61557214,0.00028321,7]
[424157763,1780617045000,-4221.2,0.00028267,2]
[424157750,1780617045000,-181.48844396,0.00027777,2]
[424157761,1780617045000,-200.0,0.00028096,2]
[424157759,1780617045000,-215.73365239,0.00028,10]
[424157765,1780617045000,-502.61,0.000283,7]
[424157846,1780617046000,-673.4,0.00028964,2]
[424157848,1780617046000,-400.0,0.00028964,2]
[424157844,1780617046000,-673.47,0.00028964,2]
[424157838,1780617046000,-1000.0,0.00028942,2]
[424157839,1780617046000,-268.63,0.00028942,2]
[424157847,1780617046000,-400.0,0.00028964,2]
[424157845,1780617046000,-972.08,0.00028964,2]
[424157843,1780617046000,-972.27,0.00028964,2]
[424157837,1780617046000,-1346.67,0.00028942,2]
[424157840,1780617046000,-286.38,0.00028947,7]
[424157836,1780617046000,-2000.0,0.00028942,2]
[424157832,1780617046000,-2000.0,0.00028942,2]
[424157842,1780617046000,-1017.05,0.00028964,2]
[424157841,1780617046000,-286.4,0.00028947,7]
[424157863,1780617046000,-727.78,0.00029,2]
[424157858,1780617046000,-201.33,0.00029,2]
[424157857,1780617046000,-200.0,0.00029,2]
[424157849,1780617046000,-400.0,0.00028964,2]
[424157851,1780617046000,-400.0,0.00028964,2]
[424157852,1780617046000,-537.0,0.00028964,2]
[424157862,1780617046000,-2000.0,0.00029,2]
[424157861,1780617046000,-2000.0,0.00029,2]
[424157854,1780617046000,-286.38,0.00028979,30]
[424157856,1780617046000,-1016.83,0.00028986,30]
[424157859,1780617046000,-349.0,0.00029,2]
[424157860,1780617046000,-8915.4776142,0.00029,30]
[424157855,1780617046000,-286.4,0.00028979,30]
[424157853,1780617046000,-238.93663269,0.00028971,2]
[424157829,1780617046000,-9474.0,0.00028904,2]
[424157850,1780617046000,-400.0,0.00028964,2]
[424157834,1780617046000,-2000.0,0.00028942,2]
[424157802,1780617046000,-286.38,0.00028725,2]
[424157831,1780617046000,-286.4,0.00028915,2]
[424157806,1780617046000,-286.38,0.00028788,30]
[424157865,1780617046000,-629.60355887,0.00029,2]
[424157803,1780617046000,-286.4,0.00028725,2]
[424157805,1780617046000,-286.4,0.00028756,7]
[424157808,1780617046000,-1017.05,0.00028797,7]
[424157809,1780617046000,-972.27,0.00028797,7]
[424157807,1780617046000,-286.4,0.00028788,30]
[424157804,1780617046000,-286.38,0.00028756,7]
[424157810,1780617046000,-673.47,0.00028797,7]
[424157812,1780617046000,-673.4,0.00028797,7]
[424157814,1780617046000,-1016.83,0.00028819,2]
[424157815,1780617046000,-286.38,0.0002882,2]
[424157818,1780617046000,-286.38,0.00028852,7]
[424157813,1780617046000,-2000.0,0.00028807,7]
[424157816,1780617046000,-286.4,0.0002882,2]
[424157819,1780617046000,-286.4,0.00028852,7]
[424157811,1780617046000,-972.08,0.00028797,7]
[424157822,1780617046000,-286.38,0.00028883,30]
[424157817,1780617046000,-10512.10148252,0.00028824,2]
[424157821,1780617046000,-200.0,0.00028871,2]
[424157820,1780617046000,-237.53189445,0.00028861,2]
[424157823,1780617046000,-286.4,0.00028883,30]
[424157835,1780617046000,-2000.0,0.00028942,2]
[424157825,1780617046000,-1644.92196194,0.000289,2]
[424157826,1780617046000,-1644.92196194,0.000289,2]
[424157824,1780617046000,-1644.92196196,0.000289,2]
[424157828,1780617046000,-6668.0,0.00028904,2]
[424157830,1780617046000,-286.38,0.00028915,2]
[424157833,1780617046000,-2000.0,0.00028942,2]
[424157827,1780617046000,-535.2679403,0.00028904,2]
[424157866,1780617046000,-5687.20514406,0.00029,5]
[424157872,1780617046000,-151.0,0.00029,7]
[424157868,1780617046000,-511.16350929,0.00029,2]
[424157903,1780617046000,-749.673451,0.00029,7]
[424157911,1780617046000,-286.38,0.00029042,7]
[424157914,1780617046000,-345.71442419,0.00029051,2]
[424157913,1780617046000,-166.66,0.00029043,2]
[424157904,1780617046000,-749.673451,0.00029,7]
[424157912,1780617046000,-286.4,0.00029042,7]
[424157902,1780617046000,-749.673451,0.00029,7]
[424157906,1780617046000,-215.73365239,0.00029,7]
[424157907,1780617046000,-215.73365239,0.00029,3]
[424157908,1780617046000,-215.73365239,0.00029,7]
[424157909,1780617046000,-286.38,0.0002901,2]
[424157905,1780617046000,-30805.46185503,0.00029,7]
[424157910,1780617046000,-286.4,0.0002901,2]
[424157915,1780617046000,-183.67012409,0.00029051,2]
[424157901,1780617046000,-749.673451,0.00029,7]
[424157918,1780617046000,-185.11451151,0.00029051,2]
[424157923,1780617046000,-342.74394577,0.00029051,2]
[424157917,1780617046000,-193.87959644,0.00029051,2]
[424157927,1780617046000,-431.60767427,0.00029059,2]
[424157925,1780617046000,-158.93674299,0.00029051,2]
[424157919,1780617046000,-319.66428345,0.00029051,2]
[424157920,1780617046000,-199.44119473,0.00029051,2]
[424157921,1780617046000,-326.82371762,0.00029051,2]
[424157924,1780617046000,-323.74134505,0.00029051,2]
[424157867,1780617046000,-219.68020016,0.00029,2]
[424157928,1780617046000,-332.99407554,0.00029059,2]
[424157916,1780617046000,-306.33747191,0.00029051,2]
[424157931,1780617046000,-188.53927733,0.0002906,2]
[424157929,1780617046000,-368.36518598,0.00029059,2]
[424157930,1780617046000,-196.92523363,0.0002906,2]
[424157922,1780617046000,-400.52301467,0.00029051,2]
[424157898,1780617046000,-557.281833,0.00029,7]
[424157926,1780617046000,-157.77367056,0.00029059,2]
[424157896,1780617046000,-151.0,0.00029,7]
[424157900,1780617046000,-215.73365239,0.00029,30]
[424157869,1780617046000,-275.86890538,0.00029,2]
[424157870,1780617046000,-1069.11,0.00029,30]
[424157873,1780617046000,-246.517908,0.00029,7]
[424157864,1780617046000,-528.6,0.00029,2]
[424157875,1780617046000,-246.517908,0.00029,7]
[424157874,1780617046000,-151.0,0.00029,7]
[424157876,1780617046000,-246.517908,0.00029,7]
[424157877,1780617046000,-151.0,0.00029,7]
[424157878,1780617046000,-151.0,0.00029,7]
[424157882,1780617046000,-187.729829,0.00029,7]
[424157879,1780617046000,-151.0,0.00029,7]
[424157881,1780617046000,-187.729829,0.00029,7]
[424157880,1780617046000,-187.729829,0.00029,7]
[424157871,1780617046000,-246.517908,0.00029,7]
[424157883,1780617046000,-187.729829,0.00029,7]
[424157884,1780617046000,-151.0,0.00029,7]
[424157895,1780617046000,-557.281833,0.00029,7]
[424157892,1780617046000,-834.811559,0.00029,7]
[424157894,1780617046000,-151.0,0.00029,7]
[424157897,1780617046000,-557.281833,0.00029,7]
[424157893,1780617046000,-151.0,0.00029,7]
[424157899,1780617046000,-557.281833,0.00029,7]
[424157889,1780617046000,-834.811559,0.00029,7]
[424157885,1780617046000,-3015.0,0.00029,7]
[424157891,1780617046000,-834.811559,0.00029,7]
[424157890,1780617046000,-834.811559,0.00029,7]
[424157888,1780617046000,-151.0,0.00029,7]
[424157886,1780617046000,-151.0,0.00029,7]
[424157887,1780617046000,-151.0,0.00029,7]
[424157956,1780617047000,-286.38,0.00029169,30]
[424157974,1780617047000,-2400.0,0.00029366,30]
[424157960,1780617047000,-286.4,0.00029201,2]
[424157961,1780617047000,-286.4,0.00029232,7]
[424157959,1780617047000,-286.38,0.00029201,2]
[424157963,1780617047000,-972.27,0.00029299,7]
[424157964,1780617047000,-1017.05,0.00029299,7]
[424157966,1780617047000,-972.08,0.00029299,7]
[424157965,1780617047000,-673.47,0.00029299,7]
[424157970,1780617047000,-151.0,0.00029366,7]
[424157972,1780617047000,-1053.0,0.00029366,30]
[424157962,1780617047000,-286.47,0.00029232,7]
[424157979,1780617047000,-705.0,0.00029376,30]
[424157973,1780617047000,-461.0,0.00029366,30]
[424157971,1780617047000,-706.0,0.00029366,30]
[424157975,1780617047000,-2456.0,0.00029366,30]
[424157977,1780617047000,-581.0,0.00029366,30]
[424157989,1780617047000,-400.0,0.00029496,2]
[424157990,1780617047000,-400.0,0.00029496,2]
[424157978,1780617047000,-3500.0,0.00029376,30]
[424157980,1780617047000,-335.0,0.00029376,30]
[424157982,1780617047000,-976.0,0.00029377,30]